fUSD/lending_fUSD_20240125
["ID","MTS","AMOUNT","RATE_DAILY","PERIOD"]
[312770110,1706205039292,-2136.77629159,0.00033,4]
[312770113,1706205039302,-193.12631424,0.000338,4]
[312770115,1706205039311,-1000.0,0.00034,4]
[312770117,1706205039321,-506.61948755,0.00034,4]
[312770119,1706205039331,-150.34,0.00034042,2]
[312770121,1706205039340,-150.0,0.00034548,10]
[312770123,1706205039349,-4184.63485197,0.000349,2]
[312770125,1706205039358,-521.14708943,0.000349,2]
[312770127,1706205039367,-521.14708942,0.000349,2]
[312770129,1706205039377,-521.14708942,0.000349,2]
[312770131,1706205039386,-521.14708942,0.000349,2]
[312770133,1706205039395,-521.14708942,0.000349,2]
[312770135,1706205039404,-521.14708942,0.000349,2]
[312770137,1706205039413,-521.14708942,0.000349,2]
[312770139,1706205039423,-521.14708942,0.000349,2]
[312770141,1706205039432,-153.11542702,0.00034999,2]
[312770143,1706205039441,-374.92675683,0.00035,2]
[312770144,1706205039450,-15743.08896824,0.00035,7]
[312770146,1706205039460,-3900.0,0.00035,7]
[312770149,1706205039472,-261.77465511,0.00035,3]
[312770151,1706205039482,-700.0,0.00035,3]
[312770153,1706205039491,-155.0,0.00035,4]
[312770155,1706205039500,-157.357135,0.00035,2]
[312770157,1706205039510,-1000.0,0.00035252,2]
[312770159,1706205039519,-938.0,0.00035286,5]
[312770161,1706205039528,-521.14708942,0.0003553,2]
[312770162,1706205039537,-7317.15,0.000357,7]
[312770163,1706205039548,-916.38,0.000358,7]
[312770164,1706205039557,-150.0,0.00035999,2]
[312770165,1706205039566,-1379.49940064,0.00036355,9]
[312770166,1706205039575,-150.34,0.00036432,2]
[312770167,1706205039584,-152.98,0.00036986,15]
[312770168,1706205039593,-150.0,0.00036999,2]
[312770169,1706205039602,-292.46824251,0.00037,7]
[312770171,1706205039611,-4809.00916968,0.00037,7]
[312770172,1706205039621,-750.0,0.00037,3]
[312770174,1706205039630,-310.02128018,0.00037,4]
[312770176,1706205039639,-40886.5505,0.00037008,3]
[312770178,1706205039649,-521.14708942,0.00037109,2]
[312770180,1706205039659,-11920.94072449,0.00037699,2]
[312770182,1706205039668,-565.43,0.000377,3]
[312770184,1706205039677,-565.43,0.000377,3]
[312770186,1706205039686,-565.43,0.000377,3]
[312770188,1706205039696,-565.43,0.000377,3]
[312770191,1706205039705,-565.43,0.000377,3]
[312770193,1706205039715,-565.43,0.000377,3]
[312770195,1706205039725,-565.43,0.000377,3]
[312770197,1706205039735,-565.43,0.000377,3]
[312770199,1706205039743,-565.43,0.000377,3]
[312770201,1706205039752,-565.43,0.000377,3]
[312770203,1706205039762,-565.43,0.000377,3]
[312770205,1706205039771,-565.43,0.000377,3]
[312770207,1706205039780,-565.43,0.000377,3]
[312770209,1706205039789,-565.43,0.000377,3]
[312770211,1706205039798,-565.43,0.000377,3]
[312770213,1706205039807,-565.43,0.000377,3]
[312770215,1706205039816,-565.43,0.000377,3]
[312770217,1706205039825,-565.43,0.000377,3]
[312770219,1706205039835,-565.43,0.000377,3]
[312770221,1706205039844,-565.43,0.000377,3]
[312770223,1706205039853,-2586.66,0.00037808,2]
[312770225,1706205039862,-190461.145049,0.0003788,2]
[312770227,1706205039871,-740.09843992,0.00037897,2]
[312770228,1706205039880,-486728.73280836,0.000379,2]
[312770230,1706205039889,-990.0,0.000379,30]
[312770233,1706205039900,-674038.884755,0.000379,3]
[312770235,1706205039908,-150.0,0.00038356,2]
[312770237,1706205039918,-521.14708942,0.00038687,2]
[312770239,1706205039927,-150.34,0.00038821,2]
[312770241,1706205039936,-800.0,0.00039,3]
[312770243,1706205039945,-701.12691554,0.00039,10]
[312770245,1706205039954,-197.02869702,0.00039,4]
[312770247,1706205039963,-975.79882434,0.00039,4]
[312770249,1706205039972,-330.72793259,0.00039071,2]
[312770251,1706205039981,-263.89358247,0.00039103,2]
[312770253,1706205039990,-669.99351941,0.00039266,2]
[312770255,1706205039999,-489.8598969,0.000395,4]
[312770257,1706205040008,-1379.49940064,0.00039718,13]
[312770259,1706205040017,-350.00006257,0.000399,4]
[312770260,1706205040027,-16855.6842,0.000399,2]
[312770262,1706205040036,-370.04921996,0.00039997,2]
[312770265,1706205040045,-434.97763282,0.00039999,15]
[312770267,1706205040054,-500.0,0.00039999,15]
[312770269,1706205040063,-374.21864479,0.00039999,15]
[312770270,1706205040072,-500.0,0.00039999,15]
[312770273,1706205040082,-500.0,0.00039999,15]
[312770275,1706205040091,-242.50048208,0.00039999,15]
[312770277,1706205040100,-500.0,0.00039999,15]
[312770279,1706205040109,-500.0,0.00039999,15]
[312770281,1706205040118,-500.0,0.00039999,15]
[312770283,1706205040128,-329.69005145,0.00039999,15]
[312770285,1706205040137,-376.94562549,0.00039999,15]
[312770287,1706205040146,-161.54812521,0.00039999,15]
[312770289,1706205040156,-8220.86729765,0.0004,5]
[312770291,1706205040166,-22022.85823354,0.0004,4]
[312770293,1706205040175,-33819.93627988,0.0004,4]
[312770295,1706205040184,-155.00208604,0.0004,4]
[312770297,1706205040194,-1084.09238932,0.0004,4]
[312770299,1706205040203,-3335.90590502,0.0004,4]
[312770301,1706205040212,-54264.43228568,0.0004,4]
[312770303,1706205040223,-173.11243094,0.0004,4]
[312770305,1706205040232,-2678.17811978,0.0004,4]
[312770307,1706205040240,-2269.30418644,0.0004,4]
[312770309,1706205040250,-2372.59232528,0.0004,4]
[312770311,1706205040259,-94669.56239554,0.0004,4]
[312770313,1706205040273,-31971.13540072,0.0004,4]
[312770316,1706205040285,-1468.02454202,0.0004,4]
[312770318,1706205040296,-2028.07605,0.0004,4]
[312770321,1706205040312,-9294.82599659,0.0004,4]
[312770323,1706205040323,-2653.45680836,0.0004,4]
[312770325,1706205040334,-484.67894162,0.0004,4]
[312770327,1706205040345,-500.0,0.0004,4]
[312770330,1706205040360,-390.90981559,0.0004,4]
[312770365,1706205040677,-2322.54487873,0.0004,4]
[312770428,1706205041324,-54216.78517083,0.0004,4]
[312770430,1706205041333,-500000.0,0.0004,4]
[312770432,1706205041343,-395.12215309,0.00040049,7]
[312770434,1706205041352,-2866.68198787,0.00040049,8]
[312770436,1706205041361,-1433.34099393,0.00040049,8]
[312770438,1706205041370,-216.67049697,0.00040049,8]
[312770440,1706205041379,-7317.15,0.000401,7]
[312770442,1706205041389,-247.5,0.00040105,7]
[312770444,1706205041398,-356.03629668,0.00040133,7]
[312770446,1706205041407,-2762.8277478,0.00040161,8]
[312770447,1706205041417,-659.02519757,0.00040219,7]
[312770448,1706205041426,-521.14708942,0.00040266,5]
[312770449,1706205041436,-590.48598869,0.00040278,7]
[312770450,1706205041445,-238.28161308,0.00040308,7]
[312770451,1706205041455,-3065.70731857,0.00040369,8]
[312770452,1706205041466,-1498.42489861,0.00040431,8]
[312770453,1706205041474,-296.89516181,0.00040463,7]
[312770454,1706205041484,-1484.69607386,0.00040521,12]
[312770455,1706205041493,-1000.0,0.00040797,30]
[312770456,1706205041502,-850.0,0.00041,3]
[312770457,1706205041512,-3441.72254948,0.00041,4]
[312770458,1706205041521,-152.98,0.00041096,15]
[312770460,1706205041531,-150.34,0.00041211,2]
[312770461,1706205041541,-753.92953087,0.000414,34]
[312770462,1706205041550,-565.43,0.000415,4]
[312770463,1706205041560,-565.43,0.000415,4]
[312770464,1706205041569,-565.43,0.000415,4]
[312770465,1706205041578,-565.43,0.000415,4]
[312770466,1706205041587,-565.43,0.000415,4]
[312770467,1706205041596,-565.43,0.000415,4]
[312770468,1706205041606,-565.43,0.000415,4]
[312770469,1706205041615,-565.43,0.000415,4]
[312770470,1706205041624,-565.43,0.000415,4]
[312770471,1706205041634,-565.43,0.000415,4]
[312770472,1706205041644,-565.43,0.000415,4]
[312770473,1706205041654,-565.43,0.000415,4]
[312770474,1706205041664,-565.43,0.000415,4]
[312770475,1706205041673,-565.43,0.000415,4]
[312770476,1706205041682,-565.43,0.000415,4]
[312770477,1706205041691,-565.43,0.000415,4]
[312770478,1706205041701,-565.43,0.000415,4]
[312770479,1706205041710,-565.43,0.000415,4]
[312770480,1706205041719,-565.43,0.000415,4]
[312770481,1706205041728,-565.43,0.000415,4]
[312770482,1706205041737,-277.75349798,0.00041521,9]
[312770483,1706205041746,-9108.00009746,0.00041521,4]
[312770484,1706205041755,-6116.39375016,0.00041521,7]
[312770485,1706205041764,-3710.12774852,0.00041521,7]
[312770486,1706205041773,-1218.18383561,0.00041521,7]
[312770487,1706205041782,-4090.05722278,0.00041521,7]
[312770488,1706205041791,-5082.90849452,0.00041521,2]
[312770489,1706205041800,-388.24401378,0.00041521,120]
[312770490,1706205041809,-559.06675991,0.00041521,7]
[312770491,1706205041817,-150.0,0.00041521,30]
[312770492,1706205041826,-2735.0,0.00041521,4]
[312770493,1706205041836,-276.44116608,0.00041522,4]
[312770494,1706205041846,-1200.0,0.000416,30]
[312770495,1706205041855,-521.14708942,0.00041845,5]
[312770496,1706205041864,-250.78,0.0004199,10]
[312770497,1706205041873,-840.85262393,0.00042,120]
[312770498,1706205041882,-3848.3296126,0.00042,120]
[312770499,1706205041891,-271426.45919595,0.00042,30]
[312770500,1706205041900,-728.90840768,0.00042,4]
[312770501,1706205041909,-666.0,0.000421,4]
[312770502,1706205041919,-150.0,0.00042192,2]
[312770503,1706205041928,-900.0,0.00043,3]
[312770504,1706205041937,-1379.49940064,0.00043082,17]
[312770505,1706205041946,-202.0,0.00043152,10]
[312770506,1706205041955,-521.14708942,0.00043424,5]
[312770507,1706205041963,-150.34,0.00043601,2]
[312770508,1706205041972,-165.84,0.00043999,2]
[312770509,1706205041981,-210.58014091,0.00044,30]
[312770510,1706205041990,-197.8310193,0.00044,120]
[312770511,1706205041999,-599.99999902,0.00044,45]
[312770512,1706205042008,-241.0543,0.000448,30]
[312770513,1706205042017,-150.0,0.000448,7]
[312770514,1706205042026,-202.0,0.00044837,10]
[312770515,1706205042035,-1112.0,0.000449,30]
[312770516,1706205042044,-5000.0,0.00044986,4]
[312770517,1706205042054,-446.02947764,0.00045,4]
[312770518,1706205042062,-283.0,0.00045,2]
[312770519,1706205042071,-521.14708942,0.00045003,5]
[312770520,1706205042081,-152.98,0.00045205,15]
[312770521,1706205042090,-370.04921996,0.00045297,2]
[312770522,1706205042099,-565.43,0.000453,5]
[312770523,1706205042108,-565.43,0.000453,5]
[312770524,1706205042118,-565.43,0.000453,5]
[312770525,1706205042127,-565.43,0.000453,5]
[312770526,1706205042136,-565.43,0.000453,5]
[312770527,1706205042145,-565.43,0.000453,5]
[312770528,1706205042155,-565.43,0.000453,5]
[312770529,1706205042165,-565.43,0.000453,5]
[312770530,1706205042174,-565.43,0.000453,5]
[312770531,1706205042183,-565.43,0.000453,5]
[312770532,1706205042192,-565.43,0.000453,5]
[312770533,1706205042201,-565.43,0.000453,5]
[312770534,1706205042210,-565.43,0.000453,5]
[312770535,1706205042219,-565.43,0.000453,5]
[312770536,1706205042229,-565.43,0.000453,5]
[312770537,1706205042238,-565.43,0.000453,5]
[312770538,1706205042247,-565.43,0.000453,5]
[312770539,1706205042256,-565.43,0.000453,5]
[312770540,1706205042265,-565.43,0.000453,5]
[312770541,1706205042275,-565.43,0.000453,5]
[312770542,1706205042284,-150.34,0.0004599,2]
[312770543,1706205042293,-150.33361107,0.00046,2]
[312770544,1706205042302,-150.0,0.00046027,2]
[312770545,1706205042311,-947.0,0.00046421,2]
[312770546,1706205042320,-663.478,0.00046421,2]
[312770547,1706205042330,-416.249,0.00046421,2]
[312770548,1706205042339,-215.0,0.00046421,2]
[312770549,1706205042349,-426.0,0.00046421,2]
[312770550,1706205042358,-250.0,0.00046421,2]
[312770551,1706205042367,-157.613,0.00046421,2]
[312770552,1706205042376,-209.925,0.00046421,2]
[312770553,1706205042385,-197.0,0.00046421,2]
[312770554,1706205042394,-177.0,0.00046421,2]
[312770555,1706205042403,-218.835,0.00046421,2]
[312770556,1706205042412,-237.517,0.00046421,2]
[312770557,1706205042421,-250.94,0.0004643,5]
[312770558,1706205042430,-1379.49940064,0.00046445,22]
[312770559,1706205042439,-202.0,0.00046522,13]
[312770560,1706205042448,-187.5,0.00046575,120]
[312770561,1706205042458,-521.14708942,0.00046582,5]
[312770562,1706205042470,-7317.15,0.000469,7]
[312770563,1706205042480,-928.04341124,0.0004724,4]
[312770564,1706205042489,-153.94916635,0.00047322,30]
[312770565,1706205042499,-150.42164342,0.00047355,30]
[312770566,1706205042509,-155.18196246,0.000475,30]
[312770567,1706205042518,-152.7389689,0.00047585,30]
[312770568,1706205042527,-167.05741097,0.00047704,30]
[312770569,1706205042536,-156.72521786,0.00047797,30]
[312770570,1706205042546,-150.42164342,0.00047866,30]
[312770571,1706205042555,-521.14708942,0.00048161,5]
[312770572,1706205042564,-202.0,0.00048207,19]
[312770573,1706205042573,-307.40170157,0.00048379,7]
[312770574,1706205042583,-150.34,0.0004838,2]
[312770575,1706205042591,-156.72521786,0.0004858,30]
[312770576,1706205042600,-8016.171503,0.000487,2]
[312770577,1706205042609,-300.0,0.00048778,7]
[312770578,1706205042618,-583.13958922,0.00048878,4]
[312770579,1706205042628,-302.47,0.00048879,15]
[312770580,1706205042637,-302.47,0.00048879,15]
[312770581,1706205042646,-302.47,0.00048879,15]
[312770582,1706205042656,-302.47,0.00048879,15]
[312770583,1706205042665,-302.47,0.00048879,15]
[312770584,1706205042674,-302.47,0.00048879,15]
[312770585,1706205042683,-302.47,0.00048879,15]
[312770586,1706205042692,-1794.17840074,0.00048879,2]
[312770587,1706205042701,-150.01,0.00048879,2]
[312770588,1706205042710,-3301.0962401,0.00048879,2]
[312770589,1706205042719,-1205.9494329,0.0004888,4]
[312770590,1706205042728,-200.0,0.0004888,2]
[312770591,1706205042737,-500.0,0.0004888,7]
[312770592,1706205042746,-500.0,0.0004888,7]
[312770593,1706205042755,-160.00184019,0.0004888,2]
[312770594,1706205042764,-500.0,0.0004888,7]
[312770595,1706205042774,-160.00184019,0.0004888,2]
[312770596,1706205042782,-2000.0,0.0004888,5]
[312770598,1706205042791,-155.0,0.0004888,7]
[312770600,1706205042800,-549.52388326,0.00049,30]
[312770602,1706205042810,-565.43,0.00049,6]
[312770605,1706205042820,-565.43,0.00049,6]
[312770607,1706205042829,-565.43,0.00049,6]
[312770609,1706205042838,-565.43,0.00049,6]
[312770612,1706205042848,-565.43,0.00049,6]
[312770614,1706205042857,-565.43,0.00049,6]
[312770615,1706205042866,-565.43,0.00049,6]
[312770617,1706205042875,-565.43,0.00049,6]
[312770619,1706205042885,-565.43,0.00049,6]
[312770621,1706205042894,-565.43,0.00049,6]
[312770624,1706205042904,-565.43,0.00049,6]
[312770626,1706205042913,-565.43,0.00049,6]
[312770628,1706205042922,-565.43,0.00049,6]
[312770630,1706205042931,-565.43,0.00049,6]
[312770632,1706205042941,-565.43,0.00049,6]
[312770634,1706205042951,-565.43,0.00049,6]
[312770636,1706205042960,-565.43,0.00049,6]
[312770637,1706205042969,-565.43,0.00049,6]
[312770639,1706205042978,-565.43,0.00049,6]
[312770641,1706205042987,-565.43,0.00049,6]
[312770643,1706205042996,-30071.47814074,0.00049038,21]
[312770645,1706205043006,-2586.66,0.00049041,2]
[312770647,1706205043015,-13889.31205713,0.00049084,20]
[312770648,1706205043024,-151.0,0.00049168,2]
[312770649,1706205043033,-25267.25686051,0.00049192,21]
[312770650,1706205043042,-156.72521786,0.00049206,30]
[312770651,1706205043051,-20607.43856946,0.00049225,21]
[312770652,1706205043059,-8451.66248531,0.00049255,21]
[312770653,1706205043068,-375.0,0.00049315,120]
[312770654,1706205043077,-600.0,0.00049315,30]
[312770655,1706205043086,-152.98,0.00049315,15]
[312770656,1706205043095,-186.52,0.00049315,2]
[312770657,1706205043104,-465.45,0.00049421,2]
[312770658,1706205043113,-150.0,0.00049421,2]
[312770659,1706205043122,-155.18196246,0.00049447,30]
[312770660,1706205043131,-1981.85045544,0.00049466,60]
[312770661,1706205043141,-1981.85045544,0.00049466,90]
[312770662,1706205043151,-2054.44863368,0.00049466,120]
[312770663,1706205043160,-154.88413823,0.00049543,30]
[312770664,1706205043169,-521.14708942,0.0004974,5]
[312770665,1706205043178,-1379.49940064,0.00049809,26]
[312770666,1706205043187,-150.0,0.00049863,2]
[312770667,1706205043197,-152.7389689,0.00049881,30]
[312770668,1706205043206,-202.0,0.00049891,25]
[312770669,1706205043215,-156.72521786,0.00049927,30]
[312770670,1706205043224,-302.0,0.00049995,4]
[312770671,1706205043233,-26892.80733379,0.0005,4]
[312770672,1706205043242,-2800.86461245,0.0005,10]
[312770673,1706205043251,-32367.94804715,0.0005,30]
[312770674,1706205043260,-7451.22079261,0.0005,30]
[312770675,1706205043269,-3000.0,0.0005,21]
[312770676,1706205043279,-283.0,0.0005,30]
[312770677,1706205043287,-26353.20111129,0.0005,7]
[312770678,1706205043297,-26353.20111129,0.0005,7]
[312770679,1706205043307,-26353.20111129,0.0005,7]
[312770680,1706205043317,-26353.20111129,0.0005,7]
[312770681,1706205043326,-26353.20111129,0.0005,7]
[312770682,1706205043336,-26353.20111129,0.0005,7]
[312770683,1706205043345,-26353.20111129,0.0005,7]
[312770684,1706205043354,-26353.20111129,0.0005,7]
[312770686,1706205043364,-26353.20111129,0.0005,7]
[312770688,1706205043373,-26353.20011129,0.0005,7]
[312770690,1706205043383,-1018.02855406,0.0005,7]
[312770692,1706205043392,-341.0495753,0.00050097,4]
[312770694,1706205043401,-157.11465594,0.00050098,4]
[312770696,1706205043410,-232.92375042,0.00050098,4]
[312770697,1706205043420,-7317.15,0.000501,7]
[312770699,1706205043430,-201.0,0.00050137,4]
[312770701,1706205043439,-1296.31052883,0.00050255,2]
[312770703,1706205043448,-156.72521786,0.00050409,60]
[312770705,1706205043457,-150.656,0.00050458,30]
[312770706,1706205043470,-150.494,0.00050458,30]
[312770708,1706205043479,-753.92953087,0.0005065,47]
[312770710,1706205043488,-150.42164342,0.00050759,60]
[312770712,1706205043497,-150.34,0.00050769,2]
[312770714,1706205043507,-604.0,0.00050835,7]
[312770716,1706205043518,-2000.0,0.00051,120]
[312770718,1706205043527,-150.43718275,0.00051,14]
[312770720,1706205043537,-150.43718275,0.00051,15]
[312770722,1706205043547,-150.43718275,0.00051,15]
[312770724,1706205043556,-150.43718275,0.00051,17]
[312770726,1706205043565,-150.43718275,0.00051,14]
[312770728,1706205043574,-150.43718275,0.00051,16]
[312770730,1706205043584,-150.43718275,0.00051,14]
[312770732,1706205043593,-150.43718275,0.00051,15]
[312770734,1706205043602,-213.0,0.00051233,6]
[312770736,1706205043612,-155.18196246,0.00051573,60]
[312770738,1706205043621,-202.0,0.00051576,31]
[312770740,1706205043631,-155.18196246,0.00051647,60]
[312770742,1706205043641,-150.42164342,0.0005168,60]
[312770744,1706205043650,-2089.10649731,0.00052,2]
[312770746,1706205043659,-300.0,0.00052,5]
[312770748,1706205043669,-306.0,0.00052,5]
[312770750,1706205043678,-500.0,0.00052,30]
[312770752,1706205043687,-500.0,0.00052,30]
[312770754,1706205043697,-500.0,0.00052,30]
[312770755,1706205043706,-500.0,0.00052,30]
[312770756,1706205043715,-562.5,0.00052054,120]
[312770757,1706205043726,-150.0,0.00052054,120]
[312770758,1706205043735,-151.0,0.00052055,14]
[312770759,1706205043745,-151.0,0.00052055,14]
[312770760,1706205043755,-151.0,0.00052055,14]
[312770761,1706205043764,-151.0,0.00052055,14]
[312770762,1706205043774,-151.0,0.00052055,14]
[312770763,1706205043783,-207.0,0.00052055,14]
[312770764,1706205043793,-151.0,0.00052055,14]
[312770765,1706205043802,-152.625218,0.00052055,14]
[312770766,1706205043812,-151.0,0.00052055,14]
[312770767,1706205043821,-151.0,0.00052055,14]
[312770768,1706205043830,-151.0,0.00052055,14]
[312770769,1706205043839,-151.0,0.00052055,14]
[312770770,1706205043849,-151.0,0.00052055,14]
[312770771,1706205043858,-151.0,0.00052055,14]
[312770772,1706205043867,-151.0,0.00052055,14]
[312770773,1706205043877,-151.0,0.00052055,14]
[312770774,1706205043886,-151.0,0.00052055,14]
[312770775,1706205043896,-151.0,0.00052055,14]
[312770776,1706205043906,-151.0,0.00052055,14]
[312770777,1706205043915,-151.0,0.00052055,14]
[312770778,1706205043924,-151.0,0.00052055,14]
[312770779,1706205043933,-151.0,0.00052055,14]
[312770780,1706205043943,-151.0,0.00052055,14]
[312770781,1706205043953,-151.0,0.00052055,14]
[312770782,1706205043962,-151.0,0.00052055,14]
[312770783,1706205043971,-151.0,0.00052055,14]
[312770784,1706205043980,-157.354168,0.00052055,14]
[312770785,1706205043989,-151.0,0.00052055,14]
[312770786,1706205043999,-156.524727,0.00052055,14]
[312770787,1706205044008,-150.42164342,0.00052072,60]
[312770788,1706205044017,-156.72521786,0.00052121,60]
[312770789,1706205044027,-1208.0,0.00052122,30]
[312770790,1706205044036,-155.18196246,0.00052139,60]
[312770791,1706205044045,-152.7389689,0.00052148,60]
[312770792,1706205044055,-647.67886308,0.000522,120]
[312770793,1706205044065,-647.67886307,0.000522,120]
[312770794,1706205044074,-647.67886307,0.000522,120]
[312770795,1706205044084,-647.67886307,0.000522,120]
[312770796,1706205044093,-225.0,0.00052329,9]
[312770797,1706205044102,-150.42164342,0.00052334,60]
[312770798,1706205044111,-156.72521786,0.00052383,60]
[312770799,1706205044121,-6858.21705579,0.00052469,2]
[312770800,1706205044130,-7317.15,0.000525,14]
[312770801,1706205044139,-278.40030236,0.000525,30]
[312770802,1706205044148,-156.72521786,0.00052569,60]
[312770803,1706205044158,-1000.0,0.000526,30]
[312770804,1706205044167,-156.56269774,0.00052618,60]
[312770805,1706205044176,-300.0,0.00052739,120]
[312770806,1706205044186,-156.72521786,0.00052759,60]
[312770807,1706205044195,-157.89,0.000528,4]
[312770808,1706205044205,-157.89,0.000528,4]
[312770809,1706205044214,-152.12,0.000528,7]
[312770810,1706205044223,-152.12,0.000528,7]
[312770811,1706205044232,-152.12,0.000528,7]
[312770812,1706205044242,-565.43,0.000528,7]
[312770813,1706205044251,-565.43,0.000528,7]
[312770814,1706205044261,-565.43,0.000528,7]
[312770815,1706205044270,-565.43,0.000528,7]
[312770816,1706205044279,-565.43,0.000528,7]
[312770817,1706205044289,-565.43,0.000528,7]
[312770818,1706205044298,-565.43,0.000528,7]
[312770819,1706205044307,-565.43,0.000528,7]
[312770820,1706205044316,-565.43,0.000528,7]
[312770821,1706205044326,-565.43,0.000528,7]
[312770822,1706205044335,-565.43,0.000528,7]
[312770823,1706205044345,-565.43,0.000528,7]
[312770824,1706205044354,-565.43,0.000528,7]
[312770825,1706205044364,-565.43,0.000528,7]
[312770826,1706205044373,-565.43,0.000528,7]
[312770827,1706205044383,-565.43,0.000528,7]
[312770828,1706205044392,-565.43,0.000528,7]
[312770829,1706205044402,-565.43,0.000528,7]
[312770830,1706205044411,-565.43,0.000528,7]
[312770831,1706205044421,-565.43,0.000528,7]
[312770832,1706205044431,-156.72521786,0.00052871,60]
[312770833,1706205044440,-302.47,0.00052899,15]
[312770834,1706205044449,-302.47,0.00052899,15]
[312770835,1706205044462,-149282.60786605,0.000529,30]
[312770836,1706205044472,-196.48541005,0.000529,2]
[312770837,1706205044481,-150.42164342,0.00052924,60]
[312770838,1706205044491,-500.0,0.00053,30]
[312770839,1706205044501,-500.0,0.00053,7]
[312770840,1706205044511,-150.34,0.00053159,2]
[312770841,1706205044520,-1379.49940064,0.00053173,30]
[312770842,1706205044529,-156.72521786,0.00053244,60]
[312770843,1706205044539,-202.0,0.00053261,36]
[312770844,1706205044549,-450.0,0.00053424,120]
[312770845,1706205044560,-152.98,0.00053425,120]
[312770846,1706205044570,-237.0,0.00053425,3]
[312770847,1706205044579,-1000.0,0.00053594,45]
[312770848,1706205044589,-2000.0,0.00053612,120]
[312770849,1706205044598,-153.21386405,0.00053622,60]
[312770850,1706205044607,-150.0,0.00053699,2]
[312770851,1706205044617,-152.0,0.00053702,3]
[312770852,1706205044626,-50000.0,0.00054,44]
[312770853,1706205044636,-5000.0,0.00054,2]
[312770854,1706205044645,-500.0,0.00054,30]
[312770855,1706205044655,-168.19300486,0.00054,90]
[312770856,1706205044664,-18924.0,0.00054059,30]
[312770857,1706205044673,-375.87,0.00054109,120]
[312770858,1706205044683,-150.42164342,0.00054503,60]
[312770859,1706205044692,-249.0,0.00054521,3]
[312770860,1706205044701,-18924.0,0.00054616,30]
[312770861,1706205044710,-2295.0,0.000547,117]
[312770862,1706205044720,-302.47,0.00054783,15]
[312770863,1706205044729,-370.04921996,0.00054791,2]
[312770864,1706205044738,-1838.2,0.00054794,5]
[312770865,1706205044747,-500.0,0.00054794,120]
[312770866,1706205044757,-501.1711837,0.00054794,120]
[312770867,1706205044766,-629.85080605,0.00054794,120]
[312770868,1706205044775,-500.0,0.00054794,60]
[312770869,1706205044785,-500.0,0.00054794,120]
[312770870,1706205044794,-500.0,0.00054794,120]
[312770871,1706205044804,-500.0,0.00054794,120]
[312770872,1706205044813,-500.0,0.00054794,120]
[312770873,1706205044823,-500.0,0.00054794,120]
[312770874,1706205044832,-503.52512694,0.00054794,120]
[312770875,1706205044841,-500.0,0.00054794,120]
[312770876,1706205044851,-512.78034382,0.00054794,120]
[312770877,1706205044860,-504.73873782,0.00054794,120]
[312770878,1706205044870,-500.0,0.00054794,120]
[312770879,1706205044879,-500.0,0.00054794,120]
[312770880,1706205044888,-500.0,0.00054794,120]
[312770881,1706205044898,-500.0,0.00054794,120]
[312770882,1706205044908,-500.0,0.00054794,120]
[312770883,1706205044917,-614.6,0.00054794,120]